fUSD/lending_fUSD_20251230
["ID","MTS","AMOUNT","RATE_DAILY","PERIOD"]
[400107134,1767122920512,-307.51653729,0.000488,120]
[400107135,1767122920546,-202.37715488,0.00048838,30]
[400107136,1767122920578,-202.37715488,0.00048889,30]
[400107137,1767122920608,-1433.34,0.000489,120]
[400107138,1767122920639,-152.0,0.000489,120]
[400107139,1767122920669,-1086.76210808,0.000489,120]
[400107140,1767122920700,-202.37715488,0.00048939,30]
[400107141,1767122920730,-900.0,0.00048957,60]
[400107142,1767122920759,-2000.0,0.00048984,60]
[400107143,1767122920790,-202.37715488,0.0004899,30]
[400107144,1767122920818,-206.0,0.0004899,30]
[400107145,1767122920848,-208.0,0.0004899,30]
[400107146,1767122920880,-189.83534894,0.00049,120]
[400107147,1767122920911,-790.693493,0.00049,30]
[400107148,1767122920942,-1377.33508829,0.00049,120]
[400107149,1767122920974,-999.0,0.00049,120]
[400107150,1767122921006,-46024.52289513,0.00049,120]
[400107151,1767122921039,-1533.73285089,0.00049,120]
[400107152,1767122921070,-500.0,0.00049,120]
[400107153,1767122921100,-150.0,0.00049,120]
[400107154,1767122921129,-253.0,0.00049,63]
[400107155,1767122921157,-211.32,0.00049027,120]
[400107156,1767122921187,-202.37715488,0.0004904,30]
[400107157,1767122921216,-202.37715488,0.00049091,30]
[400107158,1767122921246,-202.37715488,0.00049141,30]
[400107159,1767122921281,-202.37715488,0.00049192,30]
[400107160,1767122921311,-1996.659602,0.000492,120]
[400107161,1767122921346,-202.37715488,0.00049242,30]
[400107162,1767122921376,-202.37715488,0.00049293,30]
[400107163,1767122921407,-430.11957527,0.00049315,120]
[400107164,1767122921436,-253.79859721,0.00049315,120]
[400107165,1767122921466,-1099.0,0.00049328,30]
[400107166,1767122921497,-202.37715488,0.00049343,30]
[400107167,1767122921528,-202.37715488,0.00049394,30]
[400107168,1767122921563,-153.0,0.000494,120]
[400107169,1767122921595,-202.37715488,0.00049444,30]
[400107170,1767122921625,-202.37715488,0.00049495,30]
[400107171,1767122921655,-648.29046766,0.000495,120]
[400107172,1767122921684,-1400.52651095,0.000495,60]
[400107173,1767122921713,-202.37715488,0.00049545,30]
[400107174,1767122921741,-202.37715488,0.00049596,30]
[400107175,1767122921770,-152.0,0.000496,120]
[400107176,1767122921797,-885.11803003,0.000496,120]
[400107177,1767122921826,-419.0,0.00049616,60]
[400107178,1767122921855,-419.0,0.00049616,60]
[400107179,1767122921885,-419.0,0.00049616,60]
[400107180,1767122921915,-419.0,0.00049616,60]
[400107181,1767122921943,-419.0,0.00049616,60]
[400107182,1767122921972,-419.0,0.00049616,60]
[400107183,1767122922001,-419.0,0.00049616,60]
[400107184,1767122922029,-419.0,0.00049616,60]
[400107185,1767122922071,-419.0,0.00049616,60]
[400107186,1767122922101,-419.0,0.00049616,60]
[400107187,1767122922133,-419.0,0.00049616,60]
[400107188,1767122922163,-419.0,0.00049616,60]
[400107189,1767122922193,-419.0,0.00049616,60]
[400107190,1767122922223,-419.0,0.00049616,60]
[400107191,1767122922252,-419.0,0.00049616,60]
[400107192,1767122922280,-419.0,0.00049616,60]
[400107193,1767122922312,-419.0,0.00049616,60]
[400107194,1767122922549,-419.0,0.00049616,60]
[400107195,1767122922581,-419.0,0.00049616,60]
[400107196,1767122922614,-419.0,0.00049616,60]
[400107197,1767122922650,-419.0,0.00049616,60]
[400107198,1767122922681,-419.0,0.00049616,60]
[400107199,1767122922712,-419.0,0.00049616,60]
[400107200,1767122922742,-425.17982852,0.00049616,60]
[400107201,1767122922772,-202.37715488,0.00049646,30]
[400107202,1767122922801,-499.71573512,0.0004968,120]
[400107203,1767122922829,-2003.0,0.0004969,72]
[400107204,1767122922858,-202.37715488,0.00049697,30]
[400107205,1767122922893,-202.37715488,0.00049747,30]
[400107206,1767122922922,-202.37715488,0.00049798,30]
[400107207,1767122922951,-978.84193054,0.000498,30]
[400107208,1767122922981,-616.24646347,0.000498,120]
[400107209,1767122923010,-999.122813,0.000498,120]
[400107210,1767122923039,-152.35288827,0.000498,120]
[400107211,1767122923070,-2000.0,0.0004983,75]
[400107212,1767122923106,-202.37715488,0.00049848,30]
[400107213,1767122923137,-1662.0,0.00049898,70]
[400107214,1767122923167,-202.37715488,0.00049899,30]
[400107215,1767122923197,-150.98176054,0.000499,60]
[400107216,1767122923227,-202.37715488,0.00049949,30]
[400107217,1767122923257,-1000.0,0.00049999,120]
[400107218,1767122923288,-433.55638077,0.00049999,120]
[400107219,1767122923319,-165.80388532,0.00049999,120]
[400107220,1767122923351,-473.78364432,0.00049999,120]
[400107221,1767122923383,-460.70719349,0.00049999,120]
[400107222,1767122923413,-500.0,0.00049999,120]
[400107223,1767122923443,-500.0,0.00049999,120]
[400107224,1767122923474,-500.0,0.00049999,120]
[400107225,1767122923505,-168.72841195,0.00049999,120]
[400107226,1767122923539,-226.45127101,0.00049999,120]
[400107227,1767122923572,-500.0,0.00049999,120]
[400107228,1767122923606,-619.09668475,0.00049999,120]
[400107229,1767122923639,-500.0,0.00049999,120]
[400107230,1767122923672,-500.0,0.00049999,120]
[400107231,1767122923708,-610.09462095,0.00049999,120]
[400107232,1767122923745,-500.0,0.00049999,120]
[400107233,1767122923777,-150.0,0.0005,40]
[400107234,1767122923809,-153.0,0.0005,120]
[400107235,1767122923840,-500.0,0.0005,120]
[400107236,1767122923876,-2082.24,0.0005,120]
[400107237,1767122923908,-1000.0,0.0005,120]
[400107238,1767122923939,-172.77285498,0.0005,120]
[400107239,1767122923971,-838.72173264,0.0005,120]
[400107240,1767122923999,-1318.45920778,0.0005,120]
[400107241,1767122924029,-480.39662011,0.0005,120]
[400107242,1767122924058,-394.71597316,0.0005,120]
[400107243,1767122924086,-1368.45419958,0.0005,120]
[400107244,1767122924119,-1087.22480433,0.0005,120]
[400107245,1767122924148,-225.57651095,0.0005,120]
[400107246,1767122924177,-500.0,0.0005,30]
[400107247,1767122924205,-1354.24018957,0.0005,120]
[400107248,1767122924234,-1023.91861463,0.0005,120]
[400107249,1767122924264,-200.0,0.0005,120]
[400107250,1767122924293,-1498.22813042,0.0005,120]
[400107251,1767122924322,-174.60618269,0.0005,120]
[400107252,1767122924351,-250.0,0.0005,120]
[400107253,1767122924384,-999.0,0.0005,120]
[400107254,1767122924416,-200.0,0.0005,120]
[400107255,1767122924447,-2519.2611789,0.0005,62]
[400107256,1767122924478,-5000.0,0.0005,120]
[400107257,1767122924513,-749.77423476,0.0005,120]
[400107258,1767122924543,-500.0,0.0005,120]
[400107259,1767122924575,-500.0,0.0005,120]
[400107260,1767122924606,-1000.0,0.0005,120]
[400107261,1767122924636,-250.0,0.0005,120]
[400107262,1767122924665,-253.0,0.0005,67]
[400107263,1767122924695,-600.0,0.0005,120]
[400107264,1767122924724,-202.37715488,0.0005,30]
[400107265,1767122924752,-1758.15143213,0.0005,120]
[400107266,1767122924780,-600.0,0.0005,120]
[400107267,1767122924809,-900.0,0.00050053,60]
[400107268,1767122924838,-152.0,0.000502,120]
[400107269,1767122924867,-569.0983344,0.000505,120]
[400107270,1767122924917,-153.0,0.000506,120]
[400107271,1767122924948,-152.0,0.000508,120]
[400107272,1767122924978,-1191.2860449,0.00050959,120]
[400107273,1767122925009,-1000.0,0.00050999,120]
[400107274,1767122925039,-1231.24872217,0.00051,120]
[400107275,1767122925070,-150.0,0.00051,40]
[400107276,1767122925100,-1599.9110054,0.00051,120]
[400107277,1767122925131,-999.0,0.00051,120]
[400107278,1767122925160,-2000.000001,0.00051,120]
[400107279,1767122925190,-500.0,0.00051,120]
[400107280,1767122925219,-1000.0,0.00051,120]
[400107281,1767122925248,-882.40446832,0.00051,120]
[400107282,1767122925277,-250.0,0.00051,120]
[400107283,1767122925309,-210.15414151,0.00051,120]
[400107284,1767122925340,-253.0,0.00051,70]
[400107285,1767122925374,-282.95712386,0.0005109,120]
[400107286,1767122925406,-900.0,0.00051149,60]
[400107287,1767122925437,-153.0,0.000512,120]
[400107288,1767122925469,-1300.42837369,0.000512,120]
[400107289,1767122925706,-152.0,0.000515,120]
[400107290,1767122925736,-153.0,0.000517,120]
[400107291,1767122925766,-103922.63559789,0.00051864,120]
[400107292,1767122925795,-1500.0,0.000519,120]
[400107293,1767122925823,-1099.0,0.00051924,30]
[400107294,1767122925851,-1648.06942823,0.0005198,110]
[400107295,1767122925880,-1000.0,0.00051999,120]
[400107296,1767122925908,-200.0,0.00052,40]
[400107297,1767122925938,-278.45132009,0.00052,120]
[400107298,1767122925966,-155.47225755,0.00052,120]
[400107299,1767122925994,-999.0,0.00052,120]
[400107300,1767122926024,-200.0,0.00052,120]
[400107301,1767122926051,-5107.0,0.00052,30]
[400107302,1767122926079,-500.0,0.00052,120]
[400107303,1767122926107,-1000.0,0.00052,120]
[400107304,1767122926135,-250.0,0.00052,120]
[400107305,1767122926163,-50800.24385463,0.00052,120]
[400107306,1767122926191,-253.0,0.00052,74]
[400107307,1767122926381,500.0,0.00041285,60]
[400107308,1767122926420,500.0,0.00042381,60]
[400107309,1767122926467,500.0,0.00043477,60]
[400107310,1767122926509,315.12121429,0.00042679,120]
[400107311,1767122926542,500.0,0.00044573,60]
[400107312,1767122926597,500.0,0.00045669,60]
[400107313,1767122926630,500.0,0.00046765,60]
[400107314,1767122926665,500.0,0.00047861,60]
[400107315,1767122926702,500.0,0.00048957,60]
[400107316,1767122926734,512.07686007,0.00050053,60]
[400107391,1767123032234,-200.0,0.00014813,2]
[400107395,1767123032245,-627.44,0.00014947,2]
[400107399,1767123032255,-300.0,0.00015287,2]
[400107401,1767123032265,-1200.0,0.00015287,2]
[400107402,1767123032275,-150.0,0.00015288,2]
[400107404,1767123032285,-150.0,0.00015288,2]
[400107407,1767123032299,-150.0,0.00015288,2]
[400107409,1767123032310,-150.0,0.00015288,2]
[400107411,1767123032323,-150.0,0.00015288,2]
[400107412,1767123032333,-150.0,0.00015288,2]
[400107414,1767123032344,-150.0,0.00015288,2]
[400107416,1767123032354,-150.0,0.00015288,2]
[400107418,1767123032365,-150.0,0.00015288,2]
[400107420,1767123032374,-150.0,0.00015342,2]
[400107422,1767123032384,-150.0,0.00015348,2]
[400107424,1767123032394,-150.0,0.00015365,2]
[400107426,1767123032404,-150.0,0.00015377,2]
[400107427,1767123032415,-150.0,0.00015394,2]
[400107428,1767123032425,-150.0,0.00015397,2]
[400107429,1767123032435,-150.0,0.00015409,2]
[400107430,1767123032445,-150.0,0.00015418,2]
[400107431,1767123032455,-150.0,0.00015442,2]
[400107432,1767123032464,-150.0,0.00015452,2]
[400107433,1767123032474,-150.0,0.00015466,2]
[400107434,1767123032484,-150.0,0.0001547,2]
[400107435,1767123032497,-150.0,0.000155,2]
[400107436,1767123032507,-150.0,0.00015507,2]
[400107437,1767123032517,-150.0,0.00015519,2]
[400107439,1767123032527,-150.0,0.0001553,2]
[400107441,1767123032537,-150.0,0.00015549,2]
[400107443,1767123032547,-150.0,0.00015556,2]
[400107445,1767123032557,-150.0,0.00015562,2]
[400107447,1767123032567,-1000.0,0.00015567,2]
[400107449,1767123032577,-150.0,0.00015591,2]
[400107451,1767123032588,-150.0,0.00015597,2]
[400107454,1767123032598,-300.0,0.00015597,2]
[400107455,1767123032608,-996.2916167,0.000156,2]
[400107457,1767123032621,-432.4383833,0.000156,2]
[400107459,1767123032632,-150.0,0.00015606,2]
[400107461,1767123032643,-117.92312014,0.00015616,2]
[400107463,1767123032655,-32.07687986,0.00015616,2]
[400107464,1767123032665,-150.0,0.00015645,2]
[400107465,1767123032675,-150.0,0.00015652,2]
[400107467,1767123032685,-34.05507719,0.00015671,2]
[400107469,1767123032698,-115.94492281,0.00015671,2]
[400107471,1767123032707,-150.0,0.00015674,2]
[400107474,1767123032719,-150.0,0.0001568,2]
[400107476,1767123032729,-150.0,0.00015701,2]
[400107478,1767123032739,-150.0,0.00015712,2]
[400107480,1767123032749,-148.73645282,0.00015712,2]
[400107482,1767123032761,-1.26354718,0.00015712,2]
[400107483,1767123032771,-150.0,0.00015712,2]
[400107484,1767123032781,-150.0,0.00015726,2]
[400107485,1767123032791,-150.0,0.00015735,2]
[400107486,1767123032801,-150.0,0.00015751,2]
[400107487,1767123032811,-154.04,0.00015762,2]
[400107488,1767123032821,-150.0,0.00015773,2]
[400107489,1767123032830,-150.0,0.00015781,2]
[400107490,1767123032840,-269.95,0.00015789,2]
[400107491,1767123032850,-1852.42,0.00015803,2]
[400107492,1767123032860,-150.0,0.0001581,2]
[400107493,1767123032870,-150.0,0.00015818,2]
[400107494,1767123032893,-150.0,0.00015824,2]
[400107495,1767123032905,-150.0,0.00015828,2]
[400107496,1767123032917,-150.0,0.00015834,2]
[400107497,1767123032927,-150.0,0.00015836,2]
[400107498,1767123032937,-150.0,0.00015854,2]
[400107499,1767123032947,-150.0,0.0001589,2]
[400107500,1767123032957,-150.0,0.00015894,2]
[400107501,1767123032967,-150.0,0.00015905,2]
[400107502,1767123032978,-10.25493823,0.00015913,2]
[400107503,1767123032995,-139.74506177,0.00015913,2]
[400107504,1767123033005,-150.0,0.00015925,2]
[400107505,1767123033015,-150.0,0.00015941,2]
[400107506,1767123033025,-150.0,0.00015945,2]
[400107507,1767123033035,-150.0,0.00015955,2]
[400107508,1767123033044,-150.0,0.00015983,2]
[400107509,1767123033054,-151.0,0.00015997,2]
[400107510,1767123033064,-150.0,0.00016,2]
[400107511,1767123033074,-3761.90493823,0.00016,2]
[400107512,1767123033336,-3000.70572044,0.00016,2]
[400107513,1767123033377,-266.99999979,0.00016,2]
[400107514,1767123033390,-885.84363645,0.00016,2]
[400107515,1767123033404,-553.0612838,0.00016,2]
[400107516,1767123033416,-48893.93660883,0.00016,2]
[400107517,1767123033427,-13710.59881175,0.00016,4]
[400107518,1767123033439,-82054.59304438,0.00016,4]
[400107519,1767123033450,-150.0,0.00016003,2]
[400107520,1767123033460,-150.0,0.00016016,2]
[400107521,1767123033471,-150.0,0.00016031,2]
[400107522,1767123033482,-150.0,0.00016055,2]
[400107523,1767123033491,-150.0,0.0001606,2]
[400107524,1767123033501,-150.0,0.00016072,2]
[400107525,1767123033511,-150.0,0.00016076,2]
[400107526,1767123033522,-150.0,0.00016092,2]
[400107527,1767123033533,-150.0,0.0001611,2]
[400107528,1767123033543,-150.0,0.00016137,2]
[400107529,1767123033555,-150.0,0.00016137,2]
[400107530,1767123033565,-150.0,0.00016137,2]
[400107531,1767123033575,-150.0,0.00016137,2]
[400107532,1767123033586,-150.0,0.00016164,2]
[400107533,1767123033596,-150.0,0.00016182,2]
[400107534,1767123033606,-150.0,0.00016198,2]
[400107535,1767123033617,-12406.9,0.000162,5]
[400107536,1767123033626,-150.0,0.00016202,2]
[400107537,1767123033636,-150.0,0.00016214,2]
[400107538,1767123033647,-150.0,0.00016219,2]
[400107539,1767123033657,-150.0,0.00016243,2]
[400107540,1767123033667,-150.0,0.00016258,2]
[400107541,1767123033677,-150.0,0.00016271,2]
[400107542,1767123033688,-150.0,0.00016274,2]
[400107543,1767123033698,-785.1241924,0.00016291,2]
[400107544,1767123033708,-150.0,0.00016291,2]
[400107545,1767123033718,-250.0,0.00016294,2]
[400107546,1767123033729,-250.0,0.00016294,2]
[400107547,1767123033739,-218.65758169,0.00016299,2]
[400107548,1767123033748,-150.0,0.00016319,2]
[400107549,1767123033759,-150.0,0.00016329,2]
[400107550,1767123033769,-150.0,0.00016333,2]
[400107551,1767123033779,-150.0,0.00016349,2]
[400107552,1767123033789,-150.0,0.0001636,2]
[400107553,1767123033799,-150.0,0.00016369,2]
[400107554,1767123033809,-150.0,0.0001638,2]
[400107555,1767123033819,-150.0,0.00016384,2]
[400107556,1767123033829,-151.0,0.00016388,2]
[400107557,1767123033839,-4227.13604182,0.00016391,2]
[400107558,1767123033852,-107831.13992882,0.00016391,2]
[400107559,1767123033863,-801.95128758,0.00016391,2]
[400107567,1767123038349,-500.0,0.00015999,2]
[400107568,1767123038360,-484.20333733,0.00015999,2]
[400107569,1767123038460,-15.79666267,0.00015999,2]
[400107570,1767123038471,-500.0,0.00015999,2]
[400107571,1767123038482,-29.96080324,0.00015999,2]
[400107572,1767123038495,-470.03919676,0.00015999,2]
[400107573,1767123038505,-523.30232665,0.00015999,2]
[400107574,1767123038518,-14.75911242,0.00015999,2]
[400107575,1767123038528,-462.34987463,0.00015999,2]
[400107576,1767123038538,-187.27767956,0.00015999,2]
[400107577,1767123038551,-312.72232044,0.00015999,2]
[400107578,1767123038561,-500.0,0.00015999,2]
[400107579,1767123038571,-500.0,0.00015999,2]
[400107580,1767123038582,-500.0,0.00015999,2]
[400107581,1767123038592,-500.0,0.00015999,2]
[400107582,1767123038603,-500.0,0.00015999,2]
[400107583,1767123038614,-100.94569428,0.00015999,2]
[400107584,1767123038626,-389.90589425,0.00015999,2]
[400107586,1767123038636,-500.0,0.00015999,2]
[400107588,1767123038647,-500.0,0.00015999,2]
[400107590,1767123038657,-500.0,0.00015999,2]
[400107592,1767123038667,-500.0,0.00015999,2]
[400107595,1767123038679,-500.0,0.00015999,2]
[400107597,1767123038699,-500.0,0.00015999,2]
[400107599,1767123038718,-500.0,0.00015999,2]
[400107601,1767123038729,-500.0,0.00015999,2]
[400107603,1767123038741,-500.0,0.00015999,2]
[400107605,1767123038754,-500.0,0.00015999,2]
[400107607,1767123038764,-500.0,0.00015999,2]
[400107609,1767123038775,-500.0,0.00015999,2]
[400107611,1767123038785,-264.35317584,0.0001639,2]
[400107613,1767123038795,-320.26013894,0.0001639,2]
[400107615,1767123038805,-215.16931941,0.0001639,2]
[400107617,1767123038815,-197.44594007,0.0001639,2]
[400107619,1767123038825,-500.0,0.0001639,2]
[400107621,1767123038834,-500.0,0.0001639,2]
[400107622,1767123038844,-500.0,0.0001639,2]
[400107623,1767123038854,-462533.91030652,0.00016391,2]
[400107624,1767123038873,-813.8673398,0.00016391,2]
[400107625,1767123038886,-852.00000021,0.00016391,2]
[400107778,1767123040394,-7142.45768139,0.00016391,2]
[400107788,1767123040448,-1267.82664481,0.00016391,2]
[400107790,1767123040460,-1033.83778917,0.00016391,2]
[400107793,1767123040472,-1421.76578285,0.00016391,2]
[400107795,1767123040483,-27249.48216851,0.00016391,2]
[400107798,1767123040502,-59808.83408863,0.00016391,2]
[400107800,1767123040513,-1322.97,0.00016391,2]
[400107805,1767123040558,-862.37122747,0.00016391,2]
[400107808,1767123040569,-5390.30582771,0.00016391,2]
[400107821,1767123040685,-1668.2263106,0.00016391,2]
[400107831,1767123040775,-530.6,0.00016391,2]
[400107834,1767123040787,-1129.1994,0.00016391,2]
[400107836,1767123040799,-9927.6567,0.00016391,2]
[400107838,1767123040810,-509.65562623,0.00016391,2]
[400107885,1767123044164,-1674.47079208,0.00016391,2]
[400107899,1767123046427,-500.0,0.00016391,2]
[400107900,1767123046485,-3341.82194633,0.00016391,2]
[400107922,1767123473402,159.53,7.768e-05,2]
[400107923,1767123473616,159.53,9.709e-05,2]
[400107924,1767123473859,159.53,0.00011651,2]
[400107927,1767123681437,168.03,0.00012319,2]
[400107976,1767124231915,-159.53,0.00013593,2]
[400107978,1767124231925,-494.79,0.00013699,2]
[400107980,1767124231935,-166.66,0.00014871,2]
[400107982,1767124231945,-597.28775858,0.00014936,2]
[400107984,1767124231957,-602.71224142,0.00014936,2]
[400107986,1767124231967,-43408.06925858,0.00014937,2]
[400107988,1767124231979,-69901.63074142,0.00014937,2]
[400107990,1767124231989,-293.25604003,0.00014953,2]
[400107992,1767124231999,-300.0,0.00014953,2]
[400107995,1767124232009,-600.0,0.00014953,2]
[400107997,1767124232020,-250.0,0.00014953,2]
[400107999,1767124232030,-581.06,0.00014968,2]
[400108001,1767124232040,-176.93,0.00014971,2]
[400108003,1767124232050,-999.0,0.0001502,3]
[400108005,1767124232060,-183.83,0.00015168,2]
[400108007,1767124232070,-215.96,0.00015177,2]
[400108009,1767124232080,-166.66,0.00015184,2]
[400108011,1767124232094,-150.0,0.00015288,2]
[400108014,1767124232104,-150.0,0.00015288,2]
[400108016,1767124232114,-150.0,0.00015288,2]
[400108018,1767124232124,-150.0,0.00015288,2]
[400108020,1767124232133,-150.0,0.00015288,2]
[400108022,1767124232142,-150.0,0.00015288,2]
[400108024,1767124232152,-150.0,0.00015288,2]
[400108026,1767124232161,-150.0,0.00015288,2]
[400108028,1767124232170,-150.0,0.00015288,2]
[400108030,1767124232180,-150.0,0.00015288,2]
[400108032,1767124232189,-150.0,0.00015288,2]
[400108034,1767124232199,-150.0,0.00015288,2]
[400108036,1767124232208,-375.08,0.00015315,2]
[400108037,1767124232217,-150.0,0.00015458,2]
[400108038,1767124232227,-150.0,0.00015476,2]
[400108039,1767124232237,-166.66,0.00015497,2]
[400108040,1767124232247,-150.0,0.000155,2]
[400108041,1767124232259,-150.0,0.0001553,2]
[400108042,1767124232269,-159.53,0.00015535,2]
[400108043,1767124232283,-150.0,0.00015571,2]
[400108044,1767124232292,-150.0,0.00015571,2]
[400108045,1767124232302,-150.0,0.00015627,2]
[400108046,1767124232312,-150.0,0.00015627,2]
[400108047,1767124232322,-150.0,0.00015665,2]
[400108048,1767124232331,-150.0,0.00015712,2]
[400108049,1767124232341,-150.0,0.00015712,2]
[400108050,1767124232351,-150.0,0.00015773,2]
[400108051,1767124232361,-150.0,0.00015797,2]
[400108052,1767124232371,-164.34158278,0.000158,2]
[400108053,1767124232381,-166.66,0.0001581,2]
[400108054,1767124232390,-150.0,0.00015854,2]
[400108055,1767124232400,-150.0,0.00015854,2]
[400108056,1767124232410,-150.0,0.00015854,2]
[400108057,1767124232420,-150.0,0.00015925,2]
[400108058,1767124232430,-500.0,0.00015967,2]
[400108059,1767124232440,-150.0,0.00015967,2]
[400108060,1767124232450,-150.0,0.00015967,2]
[400108061,1767124232459,-166.66,0.00016007,2]
[400108062,1767124232473,-151.0,0.00016012,2]
[400108063,1767124232486,-500.0,0.00016015,2]
[400108064,1767124232496,-150.0,0.00016015,2]
[400108065,1767124232506,-150.0,0.00016015,2]
[400108066,1767124232516,-500.0,0.00016015,2]
[400108067,1767124232527,-150.0,0.00016015,2]
[400108068,1767124232539,-150.0,0.00016015,2]
[400108069,1767124232549,-150.0,0.00016015,2]
[400108070,1767124232559,-150.0,0.00016015,2]
[400108071,1767124232570,-150.0,0.00016015,2]
[400108072,1767124232580,-500.0,0.00016015,2]
[400108073,1767124232590,-155.79503444,0.00016015,2]
[400108074,1767124232599,-150.0,0.00016015,2]
[400108075,1767124232609,-150.0,0.00016015,2]
[400108076,1767124232619,-150.0,0.00016015,2]
[400108077,1767124232629,-150.0,0.00016015,2]
[400108078,1767124232638,-500.0,0.00016015,2]
[400108079,1767124232648,-150.0,0.00016015,2]
[400108080,1767124232657,-250.0,0.00016015,2]
[400108081,1767124232667,-989.03,0.00016015,2]
[400108082,1767124232676,-150.0,0.00016016,2]
[400108083,1767124232686,-150.0,0.00016043,2]
[400108084,1767124232696,-550.0,0.0001607,2]
[400108085,1767124232705,-150.0,0.0001607,2]
[400108086,1767124232715,-150.0,0.0001607,2]
[400108087,1767124232725,-500.0,0.0001607,2]
[400108088,1767124232735,-150.0,0.0001607,2]
[400108089,1767124232745,-150.0,0.0001607,2]
[400108090,1767124232755,-150.0,0.0001607,2]
[400108091,1767124232765,-500.0,0.0001607,2]
[400108092,1767124232775,-150.0,0.0001607,2]
[400108093,1767124232785,-150.0,0.0001607,2]
[400108094,1767124232795,-150.0,0.0001607,2]
[400108095,1767124232804,-150.0,0.0001607,2]
[400108096,1767124232814,-500.0,0.0001607,2]
[400108097,1767124232825,-10885.88299212,0.00016106,2]
[400108098,1767124232834,-166.66,0.00016123,2]
[400108099,1767124232843,-150.0,0.00016125,2]
[400108100,1767124232854,-208.40599832,0.00016125,2]
[400108101,1767124232876,-500.0,0.00016125,2]
[400108102,1767124232887,-200.0,0.00016125,2]
[400108103,1767124232898,-500.0,0.00016125,2]
[400108104,1767124232908,-150.0,0.00016125,2]
[400108105,1767124232918,-203.40489175,0.00016125,2]
[400108106,1767124232928,-150.0,0.00016125,2]
[400108107,1767124232939,-159.00171244,0.00016125,2]
[400108108,1767124232949,-500.0,0.00016125,2]
[400108109,1767124232960,-150.0,0.00016137,2]
[400108110,1767124232969,-150.0,0.00016137,2]
[400108111,1767124232979,-150.0,0.00016137,2]
[400108112,1767124232990,-150.0,0.00016137,2]
[400108113,1767124233000,-150.0,0.00016137,2]
[400108114,1767124233011,-296.61363209,0.00016179,2]
[400108115,1767124233021,-500.0,0.00016179,2]
[400108116,1767124233031,-500.0,0.00016179,2]
[400108117,1767124233041,-150.0,0.00016179,2]
[400108118,1767124233051,-150.0,0.00016179,2]
[400108119,1767124233061,-6694.4507,0.0001619,2]
[400108120,1767124233071,-1195.3424,0.0001619,2]
[400108121,1767124233080,-1000.0,0.0001619,2]
[400108122,1767124233090,-10885.88299203,0.00016194,2]
[400108123,1767124233100,-5745.97506987,0.00016206,2]
[400108124,1767124233110,-172.22314797,0.00016206,2]
[400108125,1767124233120,-218.65758168,0.00016207,2]
[400108126,1767124233130,-264.84032697,0.00016207,2]
[400108127,1767124233140,-150.0,0.00016231,2]
[400108128,1767124233150,-423.35993407,0.00016234,2]
[400108129,1767124233160,-500.0,0.00016234,2]
[400108130,1767124233171,-150.0,0.00016234,2]
[400108131,1767124233180,-204.22488612,0.00016234,2]
[400108132,1767124233190,-150.0,0.00016258,2]
[400108133,1767124233200,-613.65,0.0001628,3]
[400108134,1767124233210,-170.39959468,0.0001628,2]